Workbook

Sheet MSU
B1: Pasi Nurminen | E1: 14.11.1971
B2: SUPERPESIS | E2: Runkosarja | I2: Kärkilyönnit (KL), pesänvälit | P2: Runkosarja TOP-30 | U2: Alempi loppusarja | AB2: Ylempi loppusarja TOP-10 | AG2: Play off, voitot, voittoprosentti | AL2: Arvo-ottelut | AO2: Mitalit
B3: Vuosi | C3: Sija | D3: Seura | E3: OTT | F3: KUN | G3: LÖI | H3: TOI | I3: KL | J3: 0 > 1 | K3: 1 > 2 | L3: 2 > 3 | M3: 3 > k | N3: KL-% | P3: LÖI | Q3: TOI | R3: L+T | S3: KL | U3: OTT | V3: KUN | W3: LÖI | X3: TOI | Y3: KL | Z3: KL-% | AB3: LÖI | AC3: TOI | AD3: L+T | AE3: KL | AG3: Puolivälierät | AH3: Välierät | AI3: Pronssi | AJ3: Finaalit | AL3: IL | AM3: LL | AN3: hSM | AO3: K | AP3: H | AQ3: P
B4: 1988 | C4: 8. | D4: HP 2 | F4: suomensarja | AA4: 0
B5: 1989 | C5: 3. | D5: HP | F5: ykkössarja | AA5: 0
B6: 1990 | C6: 8. | D6: HP | F6: ykkössarja
B7: 1991 | C7: 5. | D7: HP | F7: ykkössarja | AA7: 0
B8: 1992 | C8: 7. | D8: HP | F8: ykköspesis | AA8: 0
B9: 1993 | C9: 6. | D9: HP | F9: ykköspesis | AA9: 66
B10: 1994 | C10: 5. | D10: HP | F10: ykköspesis | U10: 18 | V10: 1 | W10: 4 | X10: 7 | Y10: 52 | Z10: =PRODUCT(N16) -> 0.0 %
B11: 1995 | C11: 2. | D11: HP | F11: ykköspesis | U11: 5 | V11: 0 | W11: 1 | X11: 3 | Y11: 17 | Z11: =PRODUCT(N17) -> 56.4 %
B12: 1996 | C12: 12. | D12: HP | E12: 24 | F12: 2 | G12: 14 | H12: 14 | I12: 91 | J12: 17 | K12: 22 | L12: 36 | M12: 16 | N12: 50.0 %
B13: 1997 | C13: 9. | D13: HP | E13: 28 | F13: 3 | G13: 13 | H13: 12 | I13: 81 | J13: 21 | K13: 21 | L13: 23 | M13: 16 | N13: 44.8 %
B14: 1998 | C14: 12. | D14: HP | E14: 22 | F14: 0 | G14: 3 | H14: 3 | I14: 41 | J14: 12 | K14: 14 | L14: 12 | M14: 3 | N14: 37.3 % | U14: 4 | V14: 0 | W14: 0 | X14: 2 | Y14: 12 | Z14: =PRODUCT(N20) -> 33.0 %
B15: 1999 | C15: 12. | D15: HP | E15: 10 | F15: 1 | G15: 1 | H15: 3 | I15: 23 | J15: 11 | K15: 4 | L15: 6 | M15: 2 | N15: 41.8 % | U15: 8 | V15: 0 | W15: 2 | X15: 2 | Y15: 18 | Z15: =PRODUCT(N21) -> 0.0 % | AA15: 0
B16: 2000 | AA16: 0
B17: 2001 | C17: 14. | D17: HP | E17: 28 | F17: 0 | G17: 14 | H17: 6 | I17: 88 | J17: 15 | K17: 32 | L17: 27 | M17: 14 | N17: 56.4 % | U17: 7 | V17: 0 | W17: 2 | X17: 4 | Y17: 13 | Z17: =PRODUCT(N23) -> 44.1 % | AA17: 0
B18: 2002 | C18: 7. | D18: PePe | F18: suomensarja | AA18: 40
B19: 2003 | C19: 2. | D19: KiPe | E19: 22 | F19: 0 | G19: 25 | H19: 2 | I19: 45 | J19: 1 | K19: 7 | L19: 12 | M19: 25 | N19: 35.7 % | P19: 18. | AG19: 4-0 SMJ | AH19: 4-2 KoU | AJ19: 0-2 SoJy | AP19: 1
B20: 2004 | C20: 12. | D20: JäPe | E20: 28 | F20: 0 | G20: 7 | H20: 0 | I20: 36 | J20: 5 | K20: 13 | L20: 11 | M20: 7 | N20: 33.0 % | U20: 5 | V20: 0 | W20: 0 | X20: 1 | Y20: 1 | Z20: =PRODUCT(N26) -> 0.0 %
B21: 2005 | AA21: 74
B22: 2006 | C22: 8. | D22: PuMu | F22: ykköspesis | AA22: 85
B23: Yhteensä | E23: 162 | F23: 6 | G23: 77 | H23: 40 | I23: 405 | J23: 82 | K23: 113 | L23: 127 | M23: 83 | N23: 44.1 % | P23: 0-0-0 | Q23: 0-0-0 | R23: 0-0-0 | S23: 0-0-0 | U23: 47 | V23: 1 | W23: 9 | X23: 19 | Y23: 113 | Z23: 44.7 % | AA23: =SUM(AA3:AA22) -> 265 | AB23: 0-0-0 | AC23: 0-0-0 | AD23: 0-0-0 | AE23: 0-0-0 | AG23: 1/1 | AH23: 1/1 | AI23: 0/0 | AJ23: 0/1 | AL23: 0 | AM23: 0 | AN23: 0 | AO23: 0 | AP23: 1 | AQ23: 0
AG24: 100.0 % | AH24: 100.0 % | AI24: 0.0 % | AJ24: 0.0 %
B25: Pesispörssi | D25: 304.3
B27: URA SUPERISSA | E27: OTT | F27: KUN | G27: LÖI | H27: TOI | I27: KL | K27: ka/L | L27: ka/T | M27: ka/KL | N27: KL-% | P27: ENSIMMÄISET RUNKOSARJASSA | AG27: ENSIMMÄISET PUDOTUSPELEISSÄ | AL27: YLEISÖ
B28: Runkosarja | E28: 162 | F28: 6 | G28: 77 | H28: 40 | I28: 405 | K28: 0.51 | L28: 0.25 | M28: 2.50 | N28: 44.1 % | P28: Ottelu | R28: 12.05. 1996 HP - AA 2-0 (4-2, 8-1) | AA28: 1. ottelu | AD28: 24 v 5 kk 28 pv | AG28: Ottelu | AH28: 1. 12.08. 2003 KiPe - SMJ 2-0 | AL28: 1579 | AO28: 31 v 8 kk 29 pv
B29: Ylempi loppusarja | E29: 12 | F29: 0 | G29: 13 | H29: 0 | I29: 20 | K29: 1.08 | L29: 0.00 | M29: 1.67 | N29: 36.4 % | P29: Lyöty | R29: 26.05. 1996 SiiPe - HP 2-0 (4-1, 5-3) | AA29: 6. ottelu | AD29: 24 v 6 kk 12 pv | AG29: Lyöty | AH29: 2. 14.08. 2003 SMJ - KiPe 1-2 s | AL29: 845 | AO29: 31 v 9 kk 0 pv
B30: Alempi loppusarja | E30: 47 | F30: 1 | G30: 9 | H30: 19 | I30: 113 | K30: 0.21 | L30: 0.40 | M30: 2.40 | N30: 44.7 % | P30: Tuotu | R30: 02.06. 1996 HP - HP-K 2-1 (0-1, 2-1, 1-0) | AA30: 8. ottelu | AD30: 24 v 6 kk 17 pv | AG30: Tuotu
B31: KAIKKI | E31: 221 | F31: 7 | G31: 99 | H31: 59 | I31: 538 | K31: 0.48 | L31: 0.27 | M31: 2.43 | N31: 43.9 % | P31: Kunnari | R31: 09.06. 1996 HP - SoJy 1-2 (0-2, 5-4, 0-5) | AA31: 9. ottelu | AD31: 24 v 6 kk 24 pv | AG31: Kunnari
B33: Seurat | D33: HP = Haminan Palloilijat (1928), kasvattajaseura
D34: PePe = Helsingin Peli-Peikot (1952)
D35: KiPe = Kinnarin Pesis (1998)
D36: JäPe = Järvenpään Pesis (1998)
D37: PuMu = Helsingin Puna-Mustat (1941)

Sheet MYP, MSS
B1: Pasi Nurminen | E1: 14.11.1971
B2: YKKÖSPESIS | E2: Runkosarja | L2: Runkosarja TOP-10 | Q2: Jatkosarjat | X2: SUOMENSARJA | AA2: Runkosarja | AH2: Runkosarja TOP-10 | AM2: Jatkosarjat
B3: Vuosi | C3: Sija | D3: Seura | E3: OTT | F3: KUN | G3: LÖI | H3: TOI | I3: KL | J3: KL-% | L3: LÖI | M3: TOI | N3: L+T | O3: KL | Q3: OTT | R3: KUN | S3: LÖI | T3: TOI | U3: KL | V3: KL-% | X3: Vuosi | Y3: Sija | Z3: Seura | AA3: OTT | AB3: KUN | AC3: LÖI | AD3: TOI | AE3: KL | AF3: KL-% | AH3: LÖI | AI3: TOI | AJ3: L+T | AK3: KL | AM3: OTT | AN3: KUN | AO3: LÖI | AP3: TOI | AQ3: KL | AR3: KL-%
X4: 1988 | Y4: 8. | Z4: HP 2 | AA4: 14 | AB4: 0 | AC4: 6 | AD4: 6
B5: 1989 | C5: 3. | D5: HP | E5: 15 | F5: 0 | G5: 0 | H5: 3
B6: 1990 | C6: 8. | D6: HP | E6: 22 | F6: 1 | G6: 8 | H6: 14
B7: 1991 | C7: 5. | D7: HP | E7: 22 | F7: 1 | G7: 5 | H7: 19 | I7: 99
B8: 1992 | C8: 7. | D8: HP | E8: 24 | F8: 1 | G8: 8 | H8: 12 | I8: 87
B9: 1993 | C9: 6. | D9: HP | E9: 8 | F9: 0 | G9: 1 | H9: 5 | I9: 21
B10: 1994 | C10: 5. | D10: HP | E10: 13 | F10: 2 | G10: 11 | H10: 7 | I10: 50
B11: 1995 | C11: 2. | D11: HP | E11: 23 | F11: 0 | G11: 12 | H11: 11 | I11: 68
X13: 2002 | Y13: 7. | Z13: PePe | AA13: 10 | AB13: 2 | AC13: 15 | AD13: 9 | AE13: 44 | AF13: 67.7 % | AG13: 65
B15: 2006 | C15: 8. | D15: PuMu | E15: 7 | F15: 1 | G15: 12 | H15: 1 | I15: 23 | J15: 50.0 % | K15: 46
B16: YHTEENSÄ | E16: =SUM(E4:E15) -> 134 | F16: =SUM(F4:F15) -> 6 | G16: =SUM(G4:G15) -> 57 | H16: =SUM(H4:H15) -> 72 | I16: =SUM(I4:I15) -> 348 | J16: 0.0 % | K16: =SUM(K4:K15) -> 46 | Q16: =SUM(Q4:Q15) -> 0 | R16: =SUM(R4:R15) -> 0 | S16: =SUM(S4:S15) -> 0 | T16: =SUM(T4:T15) -> 0 | U16: =SUM(U4:U15) -> 0 | V16: 0.0 % | W16: =SUM(W4:W15) -> 0 | X16: YHTEENSÄ | AA16: =SUM(AA4:AA15) -> 24 | AB16: =SUM(AB4:AB15) -> 2 | AC16: =SUM(AC4:AC15) -> 21 | AD16: =SUM(AD4:AD15) -> 15 | AE16: =SUM(AE4:AE15) -> 44 | AF16: =PRODUCT(AE16/AG16) -> 67.7 % | AG16: =SUM(AG4:AG15) -> 65 | AM16: =SUM(AM4:AM15) -> 0 | AN16: =SUM(AN4:AN15) -> 0 | AO16: =SUM(AO4:AO15) -> 0 | AP16: =SUM(AP4:AP15) -> 0 | AQ16: =SUM(AQ4:AQ15) -> 0 | AR16: 0.0 % | AS16: =SUM(AS4:AS15) -> 0
B18: KAIKKI OTTELUT | E18: OTT | F18: KUN | G18: LÖI | H18: TOI | I18: KL | J18: KL-% | L18: ka/L | M18: ka/T | N18: ka/l+t | O18: ka/kl | R18: Seurat | T18: HP = Haminan Palloilijat (1928), kasvattajaseura
B19: SUPERPESIS | E19: 221 | F19: 7 | G19: 99 | H19: 59 | I19: 538 | J19: 43.9 % | K19: =PRODUCT(I19/J19) -> 1225.512528 | L19: =PRODUCT((F19+G19)/E19) -> 0.48 | M19: =PRODUCT(H19/E19) -> 0.27 | N19: =PRODUCT((F19+G19+H19)/E19) -> 0.75 | O19: =PRODUCT(I19/E19) -> 2.43 | T19: PePe = Helsingin Peli-Peikot (1952)
B20: YKKÖSPESIS | E20: =PRODUCT(E16+Q16) -> 134 | F20: =PRODUCT(F16+R16) -> 6 | G20: =PRODUCT(G16+S16) -> 57 | H20: =PRODUCT(H16+T16) -> 72 | I20: =PRODUCT(I16+U16) -> 348 | J20: 0.0 % | K20: =PRODUCT(K16+W16) -> 46 | L20: =PRODUCT((F20+G20)/E20) -> 0.47 | M20: =PRODUCT(H20/E20) -> 0.54 | N20: =PRODUCT((F20+G20+H20)/E20) -> 1.01 | O20: =PRODUCT(I20/E20) -> 2.60 | T20: KiPe = Kinnarin Pesis (1998)
B21: SUOMENSARJA | E21: =PRODUCT(AA16+AM16) -> 24 | F21: =PRODUCT(AB16+AN16) -> 2 | G21: =PRODUCT(AC16+AO16) -> 21 | H21: =PRODUCT(AD16+AP16) -> 15 | I21: =PRODUCT(AE16+AQ16) -> 44 | J21: =PRODUCT(I21/K21) -> 67.7 % | K21: =PRODUCT(AG16+AS16) -> 65 | L21: =PRODUCT((F21+G21)/E21) -> 0.96 | M21: =PRODUCT(H21/E21) -> 0.63 | N21: =PRODUCT((F21+G21+H21)/E21) -> 1.58 | O21: 4.40 | T21: JäPe = Järvenpään Pesis (1998)
B22: YHTEENSÄ | E22: =SUM(E19:E21) -> 379 | F22: =SUM(F19:F21) -> 15 | G22: 177 | H22: 146 | I22: 930 | J22: =PRODUCT(I22/K22) -> 69.6 % | K22: =SUM(K19:K21) -> 1336.512528 | L22: =PRODUCT((F22+G22)/E22) -> 0.51 | M22: =PRODUCT(H22/E22) -> 0.39 | N22: =PRODUCT((F22+G22+H22)/E22) -> 0.89 | O22: 2.55 | T22: PuMu = Helsingin Puna-Mustat (1941)

Sheet Arvo-ottelut
B1: ITÄ - LÄNSI - KORTTI
B2: Pasi Nurminen | C2: 14.11.1971
B3: A-POJAT | C3: Itä - Länsi, tulos | D3: Joukkue | E3: Seura | G3: V | H3: T | I3: H | J3: Up. | K3: Lj. | L3: Palk. | M3: O | N3: K | O3: L | P3: T | Q3: KL | R3: 1 | S3: 2 | T3: 3 | U3: k | V3: KL-% | W3: Pelinjohtaja | X3: Yleisöä
B4: 09.06. 1989 Sotkamo | C4: 8-10 | D4: Itä | E4: HP | I4: 1 | K4: jok | M4: 1 | Q4: 0/0 | V4: ---- | W4: Juha Tanskanen | X4: 750
B5: 08.06. 1990 Helsinki | C5: 22-2 | D5: Itä | E5: HP | G5: 1 | J5: s | K5: 9 | M5: 1 | Q5: 3/5 | R5: 3/4 | S5: 0/1 | V5: 60.0 % | W5: Juha Tanskanen | X5: 511
B6: Yhteensä | G6: 1 | I6: 1 | M6: =SUM(M4:M5) -> 2 | Q6: 3/5 | R6: 3/4 | S6: 0/1 | V6: 60.0 %

Sheet Kärkilyönnit
B1: KÄRKILYÖNNIT RUNKOSARJASSA | V1: VUOSITTAISET SIJOITUKSET TOP - 30
G2: 0 > 1 | J2: 1 > 2 | M2: 2 > 3 | P2: 3 > k | S2: Yhteensä
B3: Vuosi | C3: Sija | D3: Seura | E3: OTT | F3: KL | G3: YHT | H3: % | I3: KL | J3: YHT | K3: % | L3: KL | M3: YHT | N3: % | O3: KL | P3: YHT | Q3: % | R3: KL | S3: YHT | T3: % | V3: Vuosi | W3: Sija | X3: Seura | Y3: 0 > 1 | Z3: 1 > 2 | AA3: 2 > 3 | AB3: 3 > k | AC3: KL
B4: 1996 | C4: 12. | D4: HP | E4: 24 | F4: 17 | G4: 40 | H4: =PRODUCT(F4/G4) -> 42.5 % | I4: 22 | J4: 40 | K4: =PRODUCT(I4/J4) -> 55.0 % | L4: 36 | M4: 57 | N4: =PRODUCT(L4/M4) -> 63.2 % | O4: 16 | P4: 45 | Q4: =PRODUCT(O4/P4) -> 35.6 % | R4: 91 | S4: =PRODUCT(G4+J4+M4+P4) -> 182 | T4: 50.0 % | V4: 1996 | W4: 12. | X4: HP
B5: 1997 | C5: 9. | D5: HP | E5: 28 | F5: 21 | G5: 50 | H5: =PRODUCT(F5/G5) -> 42.0 % | I5: 21 | J5: 47 | K5: =PRODUCT(I5/J5) -> 44.7 % | L5: 23 | M5: 48 | N5: =PRODUCT(L5/M5) -> 47.9 % | O5: 16 | P5: 36 | Q5: =PRODUCT(O5/P5) -> 44.4 % | R5: 81 | S5: =PRODUCT(G5+J5+M5+P5) -> 181 | T5: 44.8 % | V5: 1997 | W5: 9. | X5: HP
B6: 1998 | C6: 14. | D6: HP | E6: 22 | F6: 12 | G6: 27 | H6: =PRODUCT(F6/G6) -> 44.4 % | I6: 14 | J6: 39 | K6: =PRODUCT(I6/J6) -> 35.9 % | L6: 12 | M6: 29 | N6: =PRODUCT(L6/M6) -> 41.4 % | O6: 3 | P6: 15 | Q6: =PRODUCT(O6/P6) -> 20.0 % | R6: 41 | S6: =PRODUCT(G6+J6+M6+P6) -> 110 | T6: 37.3 % | V6: 1998 | W6: 14. | X6: HP
B7: 1999 | C7: 12. | D7: HP | E7: 10 | F7: 11 | G7: 21 | H7: =PRODUCT(F7/G7) -> 52.4 % | I7: 4 | J7: 18 | K7: =PRODUCT(I7/J7) -> 22.2 % | L7: 6 | M7: 12 | N7: =PRODUCT(L7/M7) -> 50.0 % | O7: 2 | P7: 4 | Q7: =PRODUCT(O7/P7) -> 50.0 % | R7: 23 | S7: =PRODUCT(G7+J7+M7+P7) -> 55 | T7: 41.8 % | V7: 1999 | W7: 12. | X7: HP
B8: 2000 | V8: 2000
B9: 2001 | C9: 13. | D9: HP | E9: 28 | F9: 15 | G9: 28 | H9: 53.6 % | I9: 32 | J9: 49 | K9: 65.3 % | L9: 27 | M9: 46 | N9: 58.7 % | O9: 14 | P9: 33 | Q9: 42.4 % | R9: 88 | S9: 156 | T9: 56.4 % | V9: 2001 | W9: 13. | X9: HP
B10: 2002 | V10: 2002
B11: 2003 | C11: 2. | D11: KiPe | E11: 22 | F11: 1 | G11: 5 | H11: 20.0 % | I11: 7 | J11: 17 | K11: 41.2 % | L11: 12 | M11: 32 | N11: 37.5 % | O11: 25 | P11: 72 | Q11: 34.7 % | R11: 45 | S11: 126 | T11: 35.7 % | V11: 2003 | W11: 2. | X11: KiPe | AB11: 18.
B12: 2004 | C12: 12. | D12: JäPe | E12: 28 | F12: 5 | G12: 11 | H12: 45.5 % | I12: 13 | J12: 28 | K12: 46.4 % | L12: 11 | M12: 33 | N12: 33.3 % | O12: 7 | P12: 37 | Q12: 18.9 % | R12: 36 | S12: 109 | T12: 33.0 % | V12: 2004 | W12: 12. | X12: JäPe
B13: Yhteensä | E13: =SUM(E4:E12) -> 162 | F13: =SUM(F4:F12) -> 82 | G13: =SUM(G4:G12) -> 182 | H13: =PRODUCT(F13/G13) -> 45.1 % | I13: =SUM(I4:I12) -> 113 | J13: =SUM(J4:J12) -> 238 | K13: =PRODUCT(I13/J13) -> 47.5 % | L13: =SUM(L4:L12) -> 127 | M13: =SUM(M4:M12) -> 257 | N13: =PRODUCT(L13/M13) -> 49.4 % | O13: =SUM(O4:O12) -> 83 | P13: =SUM(P4:P12) -> 242 | Q13: =PRODUCT(O13/P13) -> 34.3 % | R13: =SUM(R4:R12) -> 405 | S13: =SUM(S4:S12) -> 919 | T13: =PRODUCT(R13/S13) -> 44.1 %
B15: KÄRKILYÖNNIT YLEMMISSÄ PUDOTUSPELEISSÄ | V15: VUOSITTAISET SIJOITUKSET TOP - 30
G16: 0 > 1 | J16: 1 > 2 | M16: 2 > 3 | P16: 3 > k | S16: Yhteensä
B17: Vuosi | C17: Sija | D17: Seura | E17: OTT | F17: KL | G17: YHT | H17: % | I17: KL | J17: YHT | K17: % | L17: KL | M17: YHT | N17: % | O17: KL | P17: YHT | Q17: % | R17: KL | S17: YHT | T17: % | V17: Vuosi | W17: Sija | X17: Seura | Y17: 0 > 1 | Z17: 1 > 2 | AA17: 2 > 3 | AB17: 3 > k | AC17: KL
B18: 1996 | C18: 12. | D18: HP | V18: 1996 | W18: 12. | X18: HP
B19: 1997 | C19: 9. | D19: HP | V19: 1997 | W19: 9. | X19: HP
B20: 1998 | C20: 12. | D20: HP | V20: 1998 | W20: 12. | X20: HP
B21: 1999 | C21: 12. | D21: HP | V21: 1999 | W21: 12. | X21: HP
B22: 2000 | V22: 2000
B23: 2001 | C23: 14. | D23: HP | V23: 2001 | W23: 14. | X23: HP
B24: 2002 | C24: 7. | D24: PePe | V24: 2002 | W24: 7. | X24: PePe
B25: 2003 | C25: 2. | D25: KiPe | E25: 12 | F25: 1 | G25: 3 | H25: 33.3 % | I25: 2 | J25: 5 | K25: 40.0 % | L25: 4 | M25: 14 | N25: 28.6 % | O25: 13 | P25: 33 | Q25: 39.4 % | R25: 20 | S25: 55 | T25: 36.4 % | V25: 2003 | W25: 2. | X25: KiPe | AB25: 11.
B26: 2004 | C26: 12. | D26: JäPe | V26: 2004 | W26: 12. | X26: JäPe
B27: Yhteensä | E27: =SUM(E16:E26) -> 12 | F27: =SUM(F18:F26) -> 1 | G27: =SUM(G18:G26) -> 3 | H27: =PRODUCT(F27/G27) -> 33.3 % | I27: =SUM(I18:I26) -> 2 | J27: =SUM(J18:J26) -> 5 | K27: =PRODUCT(I27/J27) -> 40.0 % | L27: =SUM(L18:L26) -> 4 | M27: =SUM(M18:M26) -> 14 | N27: =PRODUCT(L27/M27) -> 28.6 % | O27: =SUM(O18:O26) -> 13 | P27: =SUM(P18:P26) -> 33 | Q27: =PRODUCT(O27/P27) -> 39.4 % | R27: =SUM(R18:R26) -> 20 | S27: =SUM(S18:S26) -> 55 | T27: =PRODUCT(R27/S27) -> 36.4 %
B29: KÄRKILYÖNNIT
G30: 0 > 1 | J30: 1 > 2 | M30: 2 > 3 | P30: 3 > k | S30: Yhteensä
E31: OTT | F31: KL | G31: YHT | H31: % | I31: KL | J31: YHT | K31: % | L31: KL | M31: YHT | N31: % | O31: KL | P31: YHT | Q31: % | R31: KL | S31: YHT | T31: %
B32: RUNKOSARJA | E32: =PRODUCT(E13) -> 162 | F32: =PRODUCT(F13) -> 82 | G32: =PRODUCT(G13) -> 182 | H32: =PRODUCT(H13) -> 45.1 % | I32: =PRODUCT(I13) -> 113 | J32: =PRODUCT(J13) -> 238 | K32: =PRODUCT(K13) -> 47.5 % | L32: =PRODUCT(L13) -> 127 | M32: =PRODUCT(M13) -> 257 | N32: =PRODUCT(N13) -> 49.4 % | O32: =PRODUCT(O13) -> 83 | P32: =PRODUCT(P13) -> 242 | Q32: =PRODUCT(Q13) -> 34.3 % | R32: =PRODUCT(R13) -> 405 | S32: =PRODUCT(S13) -> 919 | T32: =PRODUCT(T13) -> 44.1 %
B33: PLAY OFF | E33: =PRODUCT(E27) -> 12 | F33: =PRODUCT(F27) -> 1 | G33: 3 | H33: 33.3 % | I33: 2 | J33: 5 | K33: 40.0 % | L33: 4 | M33: 14 | N33: 28.6 % | O33: 13 | P33: 33 | Q33: 39.4 % | R33: 20 | S33: 55 | T33: 36.4 %
